bitfinex/quotes_SOLUSD_20250612
["timestamp","ask_amount","ask_price","bid_price","bid_amount"]
[1749728490808,22.52706667,157.92,157.91,4.68175755]
[1749728491011,71.08878732,157.92,157.91,4.68175755]
[1749728491230,77.42110748,157.92,157.91,4.68183192]
[1749728492215,26.0,157.89,157.83,27.68172065]
[1749728492435,53.38,157.89,157.84,4.68230284]
[1749728492616,53.38,157.89,157.85,4.68243453]
[1749728492812,21.18172065,157.87,157.86,4.68243453]
[1749728493020,21.18172065,157.87,157.86,4.68245273]
[1749728493239,21.18172065,157.87,157.83,27.68172065]
[1749728493240,21.18172065,157.88,157.84,21.18172065]
[1749728493422,21.18172065,157.88,157.85,4.68248694]
[1749728493623,21.18172065,157.88,157.86,4.68248694]
[1749728493830,74.56172065,157.89,157.87,4.68248539]
[1749728494034,80.89531671,157.89,157.88,4.68236074]
[1749728494339,80.89531671,157.89,157.85,21.18172065]
[1749728494544,80.89531671,157.89,157.83,6.5]
[1749728494722,80.89531671,157.89,157.84,21.18172065]
[1749728497243,73.83102827,157.89,157.84,14.11743221]
[1749728498748,53.38,157.89,157.85,14.11743221]
[1749728499049,27.38,157.89,157.86,14.11743221]
[1749728499425,14.11743221,157.91,157.86,14.11743221]
[1749728499628,27.38,157.9,157.87,14.11743221]
[1749728499929,27.38,157.91,157.87,14.11743221]
[1749728500936,68.97706435,157.92,157.84,18.933972]
[1749728501141,41.47743221,157.91,157.87,14.11743221]
[1749728502151,20.45026316,157.91,157.87,14.11743221]
[1749728502355,47.81026316,157.91,157.87,14.11743221]
[1749728503558,20.45026316,157.91,157.87,14.11743221]
[1749728503854,47.81026316,157.91,157.86,14.11743221]
[1749728504152,41.47743221,157.91,157.86,14.11743221]
[1749728504451,41.47743221,157.91,157.87,14.11743221]
[1749728504624,41.47743221,157.91,157.82,14.11743221]
[1749728504625,40.11743221,157.88,157.82,14.11743221]
[1749728504824,53.36,157.88,157.83,14.11743221]
[1749728505027,67.47743221,157.88,157.83,14.11743221]
[1749728505745,67.47743221,157.88,157.84,14.11743221]
[1749728505933,53.36,157.88,157.85,14.11743221]
[1749728506132,27.36,157.88,157.85,14.11743221]
[1749728506748,33.69363187,157.89,157.85,14.11743221]
[1749728508032,47.81106408,157.89,157.84,14.11743221]
[1749728508227,47.81106408,157.89,157.82,0.28432314]
[1749728508228,14.11743221,157.88,157.82,0.28432314]
[1749728508441,6.33472697,157.86,157.82,0.28432314]
[1749728508648,6.33472697,157.86,157.82,14.40175535]
[1749728509361,33.69448531,157.87,157.83,32.76708107]
[1749728509557,33.69352333,157.89,157.85,14.11743221]
[1749728510058,47.81095554,157.89,157.84,14.11743221]
[1749728510447,47.81095554,157.89,157.82,0.28432314]
[1749728510648,47.81095554,157.89,157.84,14.11743221]
[1749728511767,14.11743221,157.88,157.84,14.11743221]
[1749728512746,20.45144437,157.88,157.84,14.11743221]
[1749728513354,20.45144437,157.88,157.83,14.11743221]
[1749728516064,14.11743221,157.85,157.81,18.64964886]
[1749728516242,14.11743221,157.85,157.8,22.11043221]
[1749728517169,6.33552965,157.84,157.8,22.11043221]
[1749728519065,6.33552965,157.84,157.8,7.993]
[1749728519269,6.33552965,157.84,157.8,22.11043221]
[1749728520938,20.45296186,157.84,157.8,6.46]
[1749728521648,6.33552965,157.84,157.8,20.57743221]
[1749728522772,14.11743221,157.83,157.77,18.933972]
[1749728523065,20.45296186,157.84,157.79,14.11743221]
[1749728523263,6.33552965,157.84,157.8,14.11743221]
[1749728524663,14.11743221,157.85,157.8,14.11743221]
[1749728525349,14.11743221,157.84,157.79,14.11743221]
[1749728525552,14.11743221,157.83,157.78,14.11743221]
[1749728525976,20.45416625,157.81,157.76,6.44]
[1749728526295,20.45416625,157.81,157.68,14.11743221]
[1749728526296,14.11743221,157.79,157.74,32.76708107]
[1749728526445,27.34,157.82,157.78,14.11743221]
[1749728526776,27.34,157.82,157.79,14.11743221]
[1749728527076,47.79405612,157.82,157.78,14.11743221]
[1749728527458,47.79405612,157.82,157.74,0.28432314]
[1749728527666,47.79405612,157.82,157.78,14.11743221]
[1749728528752,27.34,157.82,157.78,14.11743221]
[1749728528961,27.34,157.82,157.79,14.11743221]
[1749728529162,33.67633525,157.82,157.79,14.11743221]
[1749728529366,33.67633525,157.82,157.78,14.11743221]
[1749728529678,6.33633525,157.82,157.78,14.11743221]
[1749728530187,26.0,157.83,157.77,0.28432314]
[1749728530384,26.0,157.83,157.8,14.11743221]
[1749728530591,32.33597618,157.83,157.79,14.11743221]
[1749728531558,46.45340839,157.83,157.79,18.64964886]
[1749728532186,46.45340839,157.83,157.78,14.11743221]
[1749728532476,32.33597618,157.83,157.78,14.11743221]
[1749728532687,46.45340839,157.83,157.78,14.11743221]
[1749728533382,14.11743221,157.81,157.77,14.11743221]
[1749728533683,14.11743221,157.82,157.77,14.11743221]
[1749728533894,46.45340839,157.83,157.78,14.11743221]
[1749728535279,14.11743221,157.82,157.77,14.11743221]
[1749728535795,14.11743221,157.8,157.76,18.64964886]
[1749728535963,14.11743221,157.8,157.74,0.28432314]
[1749728535964,14.11743221,157.79,157.74,14.11743221]
[1749728536165,14.11743221,157.8,157.75,14.11743221]
[1749728536363,27.32,157.82,157.73,18.64964886]
[1749728536364,27.32,157.82,157.78,14.11743221]
[1749728536593,32.33597618,157.83,157.79,14.11743221]
[1749728536765,32.33597618,157.83,157.73,18.933972]
[1749728537059,14.11743221,157.82,157.76,0.28432314]
[1749728537267,14.11743221,157.81,157.77,18.64964886]
[1749728537477,14.11743221,157.82,157.77,32.76708107]
[1749728537672,73.77340839,157.83,157.78,14.11743221]
[1749728537871,26.0,157.83,157.79,14.11743221]
[1749728538074,32.33594501,157.83,157.79,14.11743221]
[1749728538375,32.33594501,157.83,157.78,14.11743221]
[1749728538581,6.33563705,157.84,157.8,14.11743221]
[1749728538964,6.33563705,157.84,157.76,14.40175535]
[1749728539172,20.45306926,157.84,157.8,14.11743221]
[1749728541573,6.33563705,157.84,157.8,14.11743221]
[1749728541772,26.0,157.85,157.82,14.11743221]
[1749728541970,32.33517092,157.85,157.82,14.11743221]
[1749728543495,22.23492379,157.9,157.84,14.11743221]
[1749728543667,26.0,157.88,157.85,14.11743221]
[1749728544782,32.33425911,157.88,157.85,14.11743221]
[1749728545383,32.33425911,157.88,157.81,18.933972]
[1749728545578,32.33425911,157.88,157.84,14.11743221]
[1749728546296,46.45169132,157.88,157.84,14.11743221]
[1749728546498,46.45169132,157.88,157.83,14.11743221]
[1749728548894,32.33425911,157.88,157.84,14.11743221]
[1749728552404,32.33425911,157.88,157.85,14.11743221]
[1749728552604,26.0,157.88,157.85,14.11743221]
[1749728552810,26.0,157.88,157.86,14.11743221]
[1749728552980,155.43286803,157.91,157.87,14.11743221]
[1749728553185,155.43286803,157.91,157.88,14.11743221]
[1749728553504,6.33221483,157.93,157.9,14.11743221]
[1749728553685,32.33221483,157.93,157.89,32.76708107]
[1749728554097,32.33221483,157.93,157.89,14.11743221]
[1749728555007,46.44964704,157.93,157.89,14.11743221]
[1749728555791,46.44964704,157.93,157.87,18.64964886]
[1749728556002,46.44964704,157.93,157.89,14.11743221]
[1749728556710,46.44964704,157.93,157.87,18.64964886]
[1749728556894,46.44964704,157.93,157.89,14.11743221]
[1749728557099,32.33221483,157.93,157.9,14.11743221]
[1749728557304,26.0,157.93,157.9,14.11743221]
[1749728557886,32.33193402,157.93,157.9,14.11743221]
[1749728558703,6.33156772,157.94,157.91,14.11743221]
[1749728559282,6.33121739,157.95,157.93,14.11743221]
[1749728559481,6.33121739,157.95,157.92,14.11743221]
[1749728559684,6.33121739,157.95,157.91,14.11743221]
[1749728562984,59.61084236,157.96,157.92,14.11743221]
[1749728563504,59.61084236,157.96,157.91,14.11743221]
[1749728563505,73.72827457,157.96,157.91,14.11743221]
[1749728564108,73.72827457,157.96,157.92,14.11743221]
[1749728564285,73.72827457,157.96,157.91,14.11743221]
[1749728564694,73.72827457,157.96,157.92,14.11743221]
[1749728565384,59.61084236,157.96,157.92,14.11743221]
[1749728565581,59.61084236,157.96,157.93,14.11743221]
[1749728568499,53.77501571,157.98,157.93,14.11743221]
[1749728569712,26.51501571,157.98,157.93,14.11743221]
[1749728569894,12.3975835,157.98,157.94,14.11743221]
[1749728573194,26.51501571,157.98,157.93,14.11743221]
[1749728573396,14.11743221,157.97,157.92,14.11743221]
[1749728573718,12.3975835,157.98,157.93,14.11743221]
[1749728573918,26.51501571,157.98,157.93,14.11743221]
[1749728574692,14.11743221,157.96,157.87,26.0]
[1749728574892,41.35743221,157.96,157.91,14.11743221]
[1749728575512,41.35743221,157.96,157.88,18.64964886]
[1749728575513,27.24,157.96,157.92,14.11743221]
[1749728575695,55.46237144,157.98,157.93,14.11743221]
[1749728575897,69.57980365,157.98,157.94,14.11743221]
[1749728576219,28.22237144,157.98,157.94,14.11743221]
[1749728576406,42.33980365,157.98,157.94,14.11743221]
[1749728576903,42.33980365,157.98,157.89,0.28432314]
[1749728577105,42.33980365,157.98,157.94,14.11743221]
[1749728577297,14.11743221,157.97,157.89,0.28432314]
[1749728577499,14.11743221,157.97,157.93,14.11743221]
[1749728578039,28.22237144,157.98,157.93,14.11743221]
[1749728578421,26.51501571,157.98,157.93,14.11743221]
[1749728578818,26.51501571,157.98,157.94,14.11743221]
[1749728579129,12.3975835,157.98,157.94,14.11743221]
[1749728580539,26.51501571,157.98,157.94,14.11743221]
[1749728581514,26.51501571,157.98,157.93,14.11743221]
[1749728582230,26.51501571,157.98,157.94,14.11743221]
[1749728582599,12.3975835,157.98,157.94,14.11743221]
[1749728583013,6.3300835,157.98,157.94,14.11743221]
[1749728583815,6.3300835,157.98,157.95,14.11743221]
[1749728584017,67.35743221,157.99,157.95,14.11743221]
[1749728584018,26.0,157.99,157.95,14.11743221]
[1749728584232,276.32948759,158.0,157.97,14.11743221]
[1749728584526,290.4469198,158.0,157.95,14.11743221]
[1749728584726,14.11743221,157.99,157.94,14.11743221]
[1749728584926,318.1522724,158.0,157.93,32.76708107]
[1749728585131,14.11743221,157.98,157.93,32.76708107]
[1749728585330,14.11743221,157.98,157.92,1.5943]
[1749728585512,14.11743221,157.98,157.93,14.11743221]
[1749728585706,14.11743221,157.97,157.92,15.71173221]
[1749728586531,6.33071663,157.96,157.92,15.71173221]
[1749728586727,6.33071663,157.96,157.93,14.11743221]
[1749728587716,6.33031588,157.97,157.93,14.11743221]
[1749728589305,20.44774809,157.97,157.93,14.11743221]
[1749728589509,14.11743221,157.95,157.9,32.76708107]
[1749728589711,6.33151829,157.94,157.9,32.76708107]
[1749728590516,6.33151829,157.94,157.9,14.11743221]
[1749728591636,20.4489505,157.94,157.9,14.11743221]
[1749728592536,20.4489505,157.94,157.89,20.49743221]
[1749728592733,20.4489505,157.94,157.89,6.38]
[1749728593036,14.11743221,157.92,157.89,6.38]
[1749728593257,14.11743221,157.91,157.89,6.38]
[1749728593742,6.33312222,157.9,157.89,6.38]
[1749728594119,26.0,157.9,157.89,6.38]
[1749728594321,6.33271162,157.92,157.89,20.49743221]
[1749728594521,6.33271162,157.92,157.89,6.38]
[1749728594939,20.45014383,157.92,157.89,6.38]
[1749728599432,6.33271162,157.92,157.89,6.38]
[1749728599629,20.45014383,157.92,157.89,6.38]
[1749728599861,6.33271162,157.92,157.89,6.38]
[1749728600023,14.11743221,157.91,157.89,6.38]
[1749728601834,6.33312222,157.9,157.89,6.38]
[1749728602346,20.45025801,157.91,157.89,6.38]
[1749728605635,27.2,157.92,157.89,6.38]
[1749728605835,33.53241972,157.92,157.89,20.49743221]
[1749728606448,6.33241972,157.92,157.89,20.49743221]
[1749728607332,6.33241972,157.92,157.89,6.38]
[1749728608248,47.64946029,157.93,157.89,6.38]
[1749728608450,33.53202808,157.93,157.89,14.11743221]
[1749728608954,47.64946029,157.93,157.89,14.11743221]
[1749728609853,47.64946029,157.93,157.88,14.11743221]
[1749728612258,41.31743221,157.93,157.89,14.11743221]
[1749728612449,33.51167602,157.94,157.9,14.11743221]
[1749728613243,6.33167602,157.94,157.9,14.11743221]
[1749728613761,6.33167602,157.94,157.91,14.11743221]
[1749728614446,181.43088073,157.96,157.91,14.11743221]
[1749728614657,175.1,157.96,157.94,14.11743221]
[1749728615063,26.0,157.96,157.94,14.11743221]
[1749728616357,26.0,157.96,157.95,14.11743221]
[1749728616761,26.0,157.96,157.91,1.5577]
[1749728617061,26.0,157.96,157.94,14.11743221]
[1749728619161,26.0,157.96,157.95,14.11743221]
[1749728619365,33.4900023,157.98,157.95,14.11743221]
[1749728619744,6.3300023,157.98,157.95,14.11743221]
[1749728619944,6.32967202,157.99,157.96,14.11743221]
[1749728620150,33.48967202,157.99,157.96,14.11743221]
[1749728620344,6.32967202,157.99,157.96,14.11743221]
[1749728620560,33.48967202,157.99,157.95,14.11743221]
[1749728621866,20.44710423,157.99,157.94,14.11743221]
[1749728622050,27.16,157.98,157.94,14.11743221]
[1749728622440,27.16,157.98,157.92,18.64964886]
[1749728622441,6.33031588,157.97,157.95,14.11743221]
[1749728625639,33.49002968,157.98,157.95,14.11743221]
[1749728626046,14.11743221,157.97,157.89,18.933972]
[1749728626345,14.11743221,157.96,157.92,14.11743221]
[1749728626545,14.11743221,157.97,157.93,14.11743221]
[1749728626765,33.49002968,157.98,157.94,14.11743221]
[1749728626766,20.44746189,157.98,157.94,14.11743221]
[1749728627064,27.14,157.97,157.94,14.11743221]
[1749728627657,33.47052598,157.97,157.94,14.11743221]
[1749728630168,33.47052598,157.97,157.93,14.11743221]
[1749728630477,14.11743221,157.95,157.9,14.11743221]
[1749728630676,14.11743221,157.94,157.89,32.76708107]
[1749728631370,6.3319192,157.93,157.89,32.76708107]
[1749728632676,6.3319192,157.93,157.9,14.11743221]
[1749728632855,33.47122177,157.95,157.91,14.11743221]
[1749728634583,32.33039518,157.97,157.94,14.11743221]
[1749728634976,32.33039518,157.97,157.9,18.64964886]
[1749728634977,32.33039518,157.97,157.93,14.11743221]
[1749728635882,32.33039518,157.97,157.94,14.11743221]
[1749728636558,32.33039518,157.97,157.93,14.11743221]
[1749728638081,32.33039518,157.97,157.94,14.11743221]
[1749728640980,6.33039518,157.97,157.94,14.11743221]
[1749728643566,33.45002035,157.98,157.94,14.11743221]
[1749728643892,33.45002035,157.98,157.97,14.11743221]
[1749728646171,270.0,158.0,157.97,14.11743221]
[1749728646388,276.32925023,158.0,157.99,14.11743221]
[1749728647087,303.42925023,158.0,157.99,14.11743221]
[1749728647286,276.32925023,158.0,157.99,14.11743221]
[1749728649794,297.1,158.0,157.99,14.11743221]
[1749728650101,276.32911392,158.0,157.99,14.11743221]
[1749728650280,303.42911392,158.0,157.99,14.11743221]
[1749728652385,297.1,158.0,157.99,14.11743221]
[1749728652579,270.0,158.0,157.99,14.11743221]
[1749728652899,189.02103538,158.0,157.99,46.88451328]
[1749728653097,189.02103538,158.0,157.99,54.98133642]
[1749728653098,155.45947591,158.0,157.99,54.98133642]
[1749728654383,153.79287591,158.0,157.99,61.45783642]
[1749728654696,152.12627591,158.0,157.99,69.3016115]
[1749728655782,37.58575182,158.0,157.99,69.3016115]
[1749728658203,37.58575182,158.0,157.99,41.06674708]
[1749728658381,37.58575182,158.0,157.99,47.16883642]
[1749728658693,33.40710676,158.06,158.0,18.933972]
[1749728658878,33.40710676,158.06,158.05,14.11743221]
[1749728659084,27.08,158.06,158.05,14.11743221]
[1749728660985,33.40672388,158.06,158.01,18.64964886]
[1749728661190,33.40672388,158.06,158.05,14.11743221]
[1749728661607,33.40672388,158.06,158.01,18.64964886]
[1749728661900,33.40672388,158.06,158.05,14.11743221]
[1749728663586,27.06,158.07,158.05,14.11743221]
[1749728663779,27.06,158.07,158.06,14.11743221]
[1749728665801,14.56901508,158.08,158.06,14.11743221]
[1749728665991,27.06,158.07,158.02,0.28432314]
[1749728666195,27.06,158.07,158.06,14.11743221]
[1749728666893,14.56901508,158.08,158.06,14.11743221]
[1749728667093,27.06,158.07,158.01,18.64964886]
[1749728667285,27.06,158.07,158.06,14.11743221]
[1749728668307,27.06,158.07,158.01,18.64964886]
[1749728668506,27.06,158.07,158.06,14.11743221]
[1749728668881,33.38631112,158.07,158.06,14.11743221]
[1749728670606,33.38631112,158.07,158.05,14.11743221]
[1749728670808,33.38631112,158.07,158.01,18.64964886]
[1749728670992,33.38631112,158.07,158.05,14.11743221]
[1749728671188,6.32551078,158.09,158.06,14.11743221]
[1749728671388,27.06,158.08,158.07,14.11743221]
[1749728671910,6.32551078,158.09,158.07,14.11743221]
[1749728672204,27.04,158.08,158.07,14.11743221]
[1749728672507,22.13806128,158.1,158.07,14.11743221]
[1749728672706,27.04,158.09,158.07,14.11743221]
[1749728673406,41.15743221,158.09,158.04,14.11743221]
[1749728673611,41.15743221,158.09,158.05,14.11743221]
[1749728673783,27.04,158.09,158.07,14.11743221]
[1749728675508,6.32591093,158.08,158.07,14.11743221]
[1749728676292,6.32591093,158.08,158.02,0.28432314]
[1749728676501,27.04,158.07,158.06,14.11743221]
[1749728676808,6.32591093,158.08,158.06,14.11743221]
[1749728677102,33.36591093,158.08,158.07,14.11743221]
[1749728677309,6.32591093,158.08,158.07,14.11743221]
[1749728677505,15.8129506,158.1,158.07,14.11743221]
[1749728677506,22.13806128,158.1,158.07,14.11743221]
[1749728677705,6.32511068,158.1,158.02,0.28432314]
[1749728677885,27.04,158.09,158.08,14.11743221]
[1749728679918,6.32511068,158.1,158.08,14.11743221]
[1749728680124,6.32551078,158.09,158.08,14.11743221]
[1749728680302,33.36551078,158.09,158.08,14.11743221]
[1749728681203,33.36551078,158.09,158.02,0.28432314]
[1749728681406,33.36551078,158.09,158.08,14.11743221]
[1749728682713,33.36551078,158.09,158.06,14.11743221]
[1749728682912,33.36551078,158.09,158.01,18.64964886]
[1749728683103,33.36551078,158.09,158.06,14.11743221]
[1749728683306,33.36551078,158.09,158.01,18.64964886]
[1749728683505,49.17928774,158.09,158.06,14.11743221]
[1749728683907,49.17928774,158.09,158.01,18.64964886]
[1749728684111,49.17928774,158.09,158.06,14.11743221]
[1749728684328,63.29671995,158.09,158.01,18.64964886]
[1749728684513,63.29671995,158.09,158.04,14.11743221]
[1749728687126,63.29671995,158.09,158.05,14.11743221]
[1749728688221,63.29671995,158.09,158.01,18.64964886]
[1749728688395,63.29671995,158.09,158.05,14.11743221]
[1749728690531,49.17928774,158.09,158.05,14.11743221]
[1749728691013,63.29671995,158.09,158.01,18.64964886]
[1749728691213,63.29671995,158.09,158.04,14.11743221]
[1749728691425,49.17928774,158.09,158.04,14.11743221]
[1749728691610,63.29671995,158.09,158.04,14.11743221]
[1749728693414,63.29671995,158.09,158.05,14.11743221]
[1749728693826,22.13928774,158.09,158.08,14.11743221]
[1749728694027,49.13928774,158.09,158.01,18.64964886]
[1749728694621,49.13928774,158.09,158.05,14.11743221]
[1749728695519,49.13928774,158.09,158.06,14.11743221]
[1749728696236,49.13928774,158.09,158.01,18.64964886]
[1749728696435,49.13928774,158.09,158.06,14.11743221]
[1749728698039,49.13928774,158.09,158.05,14.11743221]
[1749728699025,14.11743221,158.07,157.98,32.3]
[1749728699223,14.11743221,158.05,158.0,14.11743221]
[1749728699547,14.11743221,158.05,157.98,6.3]
[1749728699548,14.11743221,158.03,157.98,20.41743221]
[1749728699751,27.0,158.02,157.98,20.41743221]
[1749728699910,6.32871337,158.01,157.98,20.41743221]
[1749728700313,6.32871337,158.01,157.98,6.3]
[1749728700511,6.32871337,158.01,157.98,20.41743221]
[1749728700933,6.32871337,158.01,157.99,14.11743221]
[1749728703030,6.32871337,158.01,157.98,6.3]
[1749728703031,27.0,158.0,157.98,6.3]
[1749728703242,41.11743221,158.0,157.95,14.11743221]
[1749728703542,14.11743221,157.99,157.94,14.11743221]
[1749728703744,27.0,157.98,157.94,14.11743221]
[1749728704416,27.0,157.98,157.96,14.11743221]
[1749728705022,6.33031588,157.97,157.96,14.11743221]
[1749728705227,6.33031588,157.97,157.95,14.11743221]
[1749728705847,6.33031588,157.97,157.96,14.11743221]
[1749728706359,6.32977946,157.99,157.96,14.11743221]
[1749728706563,33.32977946,157.99,157.98,14.11743221]
[1749728706729,27.0,157.99,157.98,14.11743221]
[1749728707137,6.32927093,158.0,157.98,14.11743221]
[1749728707456,33.32927093,158.0,157.99,14.11743221]
[1749728708655,6.32791242,158.03,157.99,14.11743221]
[1749728708838,27.0,158.02,158.0,14.11743221]
[1749728709038,27.0,158.02,157.99,14.11743221]
[1749728710447,27.0,158.02,158.0,14.11743221]
[1749728710833,6.32871337,158.01,157.94,18.64964886]
[1749728711141,6.32871337,158.01,158.0,14.11743221]
[1749728711325,33.32871337,158.01,158.0,14.11743221]
[1749728712055,6.32871337,158.01,158.0,14.11743221]
[1749728712249,33.30871337,158.01,158.0,14.11743221]
[1749728712639,33.30871337,158.01,157.99,14.11743221]
[1749728713263,49.1304968,158.01,157.96,14.11743221]
[1749728713457,63.24792901,158.01,157.96,14.11743221]
[1749728713621,49.1304968,158.01,157.97,14.11743221]
[1749728713826,14.11743221,157.98,157.91,26.0]
[1749728714072,14.11743221,157.96,157.87,20.19684886]
[1749728714374,26.0,157.98,157.88,26.0]
[1749728714375,26.98,157.95,157.88,26.0]
[1749728714659,26.98,157.94,157.92,14.11743221]
[1749728714859,26.98,157.94,157.93,14.11743221]
[1749728715530,6.33121939,157.95,157.93,14.11743221]
[1749728715739,6.33121939,157.95,157.94,14.11743221]
[1749728716264,33.31080518,157.96,157.94,14.11743221]
[1749728716758,33.31080518,157.96,157.95,14.11743221]
[1749728718838,26.98,157.96,157.95,14.11743221]
[1749728720347,33.3104061,157.97,157.95,14.11743221]
[1749728720546,33.3104061,157.97,157.96,14.11743221]
[1749728721559,33.3104061,157.97,157.91,18.64964886]
[1749728721759,33.3104061,157.97,157.95,14.11743221]
[1749728722861,33.3104061,157.97,157.91,18.64964886]
[1749728723058,33.3104061,157.97,157.94,14.11743221]
[1749728723243,33.3104061,157.97,157.91,18.64964886]
[1749728723244,33.3104061,157.97,157.95,14.11743221]
[1749728724059,33.3104061,157.97,157.96,14.11743221]
[1749728724644,6.3304061,157.97,157.96,14.11743221]
[1749728724857,33.3104061,157.97,157.96,14.11743221]
[1749728726040,33.3104061,157.97,157.95,14.11743221]
[1749728726560,33.3104061,157.97,157.93,14.11743221]
[1749728727062,33.3104061,157.97,157.95,14.11743221]
[1749728728434,33.3104061,157.97,157.91,18.64964886]
[1749728728635,33.3104061,157.97,157.95,14.11743221]
[1749728731852,33.3104061,157.97,157.94,14.11743221]
[1749728732241,49.1361958,157.97,157.94,14.11743221]
[1749728738458,49.1361958,157.97,157.89,26.28432314]
[1749728738778,49.1361958,157.97,157.94,14.11743221]
[1749728739345,33.3104061,157.97,157.95,14.11743221]
[1749728739559,33.3104061,157.97,157.94,14.11743221]
[1749728741771,33.3104061,157.97,157.96,14.11743221]
[1749728743960,57.64326811,158.02,157.96,14.11743221]
[1749728743961,6.33030939,157.98,157.96,14.11743221]
[1749728744158,33.27030939,157.98,157.97,14.11743221]
[1749728744975,33.27030939,157.98,157.9,6.24]
[1749728745212,33.27030939,157.98,157.94,14.11743221]
[1749728745387,70.87452954,157.98,157.93,14.11743221]
[1749728747161,70.87452954,157.98,157.89,26.0]
[1749728747385,70.87452954,157.98,157.91,14.11743221]
[1749728747386,14.11743221,157.96,157.91,14.11743221]
[1749728747584,26.94,157.95,157.91,14.11743221]
[1749728747763,26.94,157.95,157.92,14.11743221]
[1749728748679,6.33151829,157.94,157.92,14.11743221]
[1749728748883,26.94,157.93,157.92,14.11743221]
[1749728750194,33.2719192,157.93,157.92,14.11743221]
[1749728751181,33.2719192,157.93,157.88,18.64964886]
[1749728751388,33.2719192,157.93,157.92,14.11743221]
[1749728757183,26.94,157.93,157.92,14.11743221]
[1749728759093,7.662,157.98,157.92,28.23486442]
[1749728759293,7.662,157.98,157.95,14.11743221]
[1749728759294,33.25031588,157.97,157.95,14.11743221]
[1749728759481,33.25031588,157.97,157.94,14.11743221]
[1749728760173,63.19353779,157.97,157.92,14.11743221]
[1749728760374,49.07610558,157.97,157.92,14.11743221]
[1749728760585,63.19353779,157.97,157.92,14.11743221]
[1749728760792,4.6681504,157.96,157.92,14.11743221]
[1749728761087,26.92,157.95,157.92,14.11743221]
[1749728761975,6.33151829,157.94,157.93,14.11743221]
[1749728763689,33.25128062,157.95,157.93,14.11743221]
[1749728763988,33.25128062,157.95,157.94,14.11743221]
[1749728765282,6.33128062,157.95,157.94,14.11743221]
[1749728767171,6.32951452,157.99,157.94,14.11743221]
[1749728767372,6.32951452,157.99,157.98,14.11743221]
[1749728767574,33.22951452,157.99,157.98,14.11743221]
[1749728768069,6.32951452,157.99,157.98,14.11743221]
[1749728768273,26.9,157.99,157.98,14.11743221]
[1749728768468,6.32911392,158.0,157.98,14.11743221]
[1749728768469,33.22911392,158.0,157.98,14.11743221]
[1749728768671,6.32911392,158.0,157.99,14.11743221]
[1749728768896,33.22911392,158.0,157.99,14.11743221]
[1749728769995,33.22911392,158.0,157.85,1.5772]
[1749728769996,6.0752,157.95,157.85,1.5772]
[1749728770177,6.3319192,157.93,157.85,1.5772]
[1749728770379,27.14,157.92,157.88,14.11743221]
[1749728770581,27.14,157.92,157.89,14.11743221]
[1749728770886,27.14,157.92,157.88,14.11743221]
[1749728771089,27.14,157.92,157.84,14.11743221]
[1749728771300,27.14,157.92,157.89,14.11743221]
[1749728771502,22.16171721,157.93,157.91,14.11743221]
[1749728771701,27.26,157.92,157.85,18.64964886]
[1749728771893,27.26,157.92,157.91,14.11743221]
[1749728772288,33.59232016,157.92,157.91,14.11743221]
[1749728772695,49.42312056,157.92,157.84,14.11743221]
[1749728772899,49.42312056,157.92,157.9,14.11743221]
[1749728773104,49.42312056,157.92,157.89,14.11743221]
[1749728774622,49.42312056,157.92,157.84,14.11743221]
[1749728774930,49.42312056,157.92,157.89,14.11743221]
[1749728778586,49.42312056,157.92,157.9,14.11743221]
[1749728778929,6.33151829,157.94,157.91,28.23486442]
[1749728779147,6.32951452,157.99,157.93,14.11743221]
[1749728779431,6.32951452,157.99,157.98,14.11743221]
[1749728779637,33.50951452,157.99,157.98,14.11743221]
[1749728783127,22.15131396,158.01,157.98,14.11743221]
[1749728783316,22.15131396,158.01,157.92,32.76708107]
[1749728783317,27.14,158.0,157.93,18.64964886]
[1749728783504,27.14,158.0,157.99,14.11743221]
[1749728785010,33.46911392,158.0,157.99,14.11743221]
[1749728785424,6.32911392,158.0,157.99,14.11743221]
[1749728785740,27.16,158.02,157.99,28.23486442]
[1749728785938,27.16,158.02,157.97,18.64964886]
[1749728786161,27.16,158.02,158.01,14.11743221]
[1749728787212,33.48831287,158.02,158.01,14.11743221]
[1749728787619,49.30909504,158.02,158.0,14.11743221]
[1749728791020,49.30909504,158.02,157.92,41.72063221]
[1749728791223,65.05822725,158.02,157.97,14.11743221]
[1749728791727,14.11743221,158.01,157.96,14.11743221]
[1749728791914,27.1,158.0,157.96,14.11743221]
[1749728792235,27.1,158.0,157.97,14.11743221]
[1749728793033,6.32951452,157.99,157.97,14.11743221]
[1749728793227,27.08,157.98,157.97,14.11743221]
[1749728795021,33.40991517,157.98,157.97,14.11743221]
[1749728795715,33.38991517,157.98,157.97,14.11743221]
[1749728797050,6.32871337,158.01,157.97,14.11743221]
[1749728797224,6.32871337,158.01,158.0,14.11743221]